[Event "Late-Titled-Tuesday-Blitz-February-06-2024"]
[Site "Chess.com"]
[Date "2024.02.06"]
[Round "5"]
[White "Lennis93"]
[Black "Marcan2b"]
[Result "0-1"]
[WhiteElo "2680"]
[BlackElo "2997"]
[TimeControl "180+1"]
[EndTime "14:55:14 PST"]
[Termination "Marcan2b won by resignation"]

1. d4 {[%clk 0:02:49.8]} 1... Nf6 {[%clk 0:02:59.8]} 2. c4 {[%clk 0:02:48.9]}
2... e6 {[%clk 0:02:59.8]} 3. Nf3 {[%clk 0:02:49.4]} 3... d5 {[%clk 0:02:59.4]}
4. Nc3 {[%clk 0:02:48.1]} 4... a6 {[%clk 0:02:59.2]} 5. c5 {[%clk 0:02:46.9]}
5... Nc6 {[%clk 0:02:58.3]} 6. Bf4 {[%clk 0:02:45.4]} 6... Nh5 {[%clk 0:02:58]}
7. e3 {[%clk 0:02:45.1]} 7... Nxf4 {[%clk 0:02:57.7]} 8. exf4 {[%clk 0:02:46]}
8... g6 {[%clk 0:02:58.2]} 9. Rc1 {[%clk 0:02:39.2]} 9... Bg7 {[%clk 0:02:58]}
10. g3 {[%clk 0:02:38.3]} 10... O-O {[%clk 0:02:55.1]} 11. Bg2 {[%clk
0:02:37.7]} 11... b6 {[%clk 0:02:51.3]} 12. cxb6 {[%clk 0:02:36.5]} 12... cxb6
{[%clk 0:02:52.2]} 13. O-O {[%clk 0:02:33.3]} 13... Bb7 {[%clk 0:02:46.8]} 14.
Ne5 {[%clk 0:02:29.7]} 14... Rc8 {[%clk 0:02:45.6]} 15. Re1 {[%clk 0:02:26.5]}
15... b5 {[%clk 0:02:44.2]} 16. a4 {[%clk 0:02:18.5]} 16... b4 {[%clk
0:02:39.8]} 17. Ne2 {[%clk 0:02:10.8]} 17... a5 {[%clk 0:02:36.9]} 18. Rc2
{[%clk 0:01:50.8]} 18... Nxe5 {[%clk 0:02:32.5]} 19. fxe5 {[%clk 0:01:48.8]}
19... Qd7 {[%clk 0:02:32.2]} 20. Nc1 {[%clk 0:01:42.8]} 20... Rxc2 {[%clk
0:02:30.7]} 21. Qxc2 {[%clk 0:01:42.8]} 21... Rc8 {[%clk 0:02:31.6]} 22. Qd1
{[%clk 0:01:41.2]} 22... Ba6 {[%clk 0:02:27.7]} 23. Bf1 {[%clk 0:01:40.8]} 23...
Bxf1 {[%clk 0:02:27.6]} 24. Kxf1 {[%clk 0:01:41.1]} 24... Rc4 {[%clk 0:02:27]}
25. b3 {[%clk 0:01:18]} 25... Rc8 {[%clk 0:02:18.8]} 26. Ne2 {[%clk 0:01:07.9]}
26... Bh6 {[%clk 0:02:10.2]} 27. h4 {[%clk 0:00:51.4]} 27... Rc7 {[%clk
0:02:05.9]} 28. g4 {[%clk 0:00:41]} 28... Bf8 {[%clk 0:02:03.3]} 29. Qd2 {[%clk
0:00:40]} 29... Be7 {[%clk 0:02:02.8]} 30. g5 {[%clk 0:00:40.1]} 30... h6 {[%clk
0:01:56.3]} 31. Rc1 {[%clk 0:00:38]} 31... hxg5 {[%clk 0:01:52.8]} 32. hxg5
{[%clk 0:00:38.9]} 32... Kg7 {[%clk 0:01:52.5]} 33. f4 {[%clk 0:00:35.1]} 33...
Rc8 {[%clk 0:01:50.6]} 34. Rxc8 {[%clk 0:00:34.5]} 34... Qxc8 {[%clk 0:01:51.5]}
35. Qc1 {[%clk 0:00:32.8]} 35... Qh8 {[%clk 0:01:48.3]} 36. Qc7 {[%clk
0:00:32.2]} 36... Bf8 {[%clk 0:01:45.9]} 37. Qxa5 {[%clk 0:00:30.8]} 37... Qh3+
{[%clk 0:01:46]} 38. Kf2 {[%clk 0:00:28.3]} 38... Qxb3 {[%clk 0:01:46.9]} 39.
Qb5 {[%clk 0:00:25.4]} 39... Qa2 {[%clk 0:01:43.9]} 40. a5 {[%clk 0:00:19.6]}
40... b3 {[%clk 0:01:43.6]} 41. a6 {[%clk 0:00:19.9]} 41... b2 {[%clk
0:01:43.5]} 42. a7 {[%clk 0:00:19.6]} 42... Qxa7 {[%clk 0:01:28.4]} 43. Qxb2
{[%clk 0:00:19.5]} 43... Qa4 {[%clk 0:01:29.3]} 44. Qd2 {[%clk 0:00:14]} 44...
Bb4 {[%clk 0:01:28.3]} 45. Qb2 {[%clk 0:00:14.2]} 45... Bf8 {[%clk 0:01:24.4]}
46. Ke3 {[%clk 0:00:13.5]} 46... Qc4 {[%clk 0:01:22.4]} 47. Kf2 {[%clk
0:00:13.5]} 47... Qd3 {[%clk 0:01:22]} 48. Qc3 {[%clk 0:00:13]} 48... Qf5 {[%clk
0:01:18.9]} 49. Ke3 {[%clk 0:00:12]} 49... Qh3+ {[%clk 0:01:18]} 50. Kf2 {[%clk
0:00:11.4]} 50... Qh2+ {[%clk 0:01:18.2]} 51. Ke3 {[%clk 0:00:11.2]} 51... Ba3
{[%clk 0:01:15.1]} 52. Kf3 {[%clk 0:00:10.6]} 52... Qh1+ {[%clk 0:01:09.3]} 53.
Kf2 {[%clk 0:00:10.8]} 53... Be7 {[%clk 0:01:08.8]} 54. Ke3 {[%clk 0:00:09.5]}
54... Bd8 {[%clk 0:01:08.1]} 55. Kf2 {[%clk 0:00:09.1]} 55... Bb6 {[%clk
0:01:08]} 56. Ke3 {[%clk 0:00:09]} 56... Qe4+ {[%clk 0:01:02.8]} 57. Kd2 {[%clk
0:00:08.9]} 57... Qb1 {[%clk 0:01:00.6]} 58. Qc2 {[%clk 0:00:07.3]} 58... Qa1
{[%clk 0:00:59.6]} 59. Qc3 {[%clk 0:00:07]} 59... Ba5 {[%clk 0:01:00]} 0-1

[Event "Late-Titled-Tuesday-Blitz-February-06-2024"]
[Site "Chess.com"]
[Date "2024.02.06"]
[Round "5"]
[White "Sanyura"]
[Black "ChristopherYoo"]
[Result "0-1"]
[WhiteElo "2692"]
[BlackElo "3007"]
[TimeControl "180+1"]
[EndTime "14:55:20 PST"]
[Termination "ChristopherYoo won on time"]

1. e4 {[%clk 0:03:00.9]} 1... c5 {[%clk 0:02:59.9]} 2. Nf3 {[%clk 0:03:00.8]}
2... d6 {[%clk 0:03:00.6]} 3. d4 {[%clk 0:03:00.9]} 3... cxd4 {[%clk 0:03:01.5]}
4. Nxd4 {[%clk 0:03:01.6]} 4... Nf6 {[%clk 0:03:01.9]} 5. f3 {[%clk 0:03:00.8]}
5... e5 {[%clk 0:03:00.6]} 6. Nb3 {[%clk 0:03:00.8]} 6... d5 {[%clk 0:03:00.4]}
7. Bg5 {[%clk 0:03:00.2]} 7... d4 {[%clk 0:03:00.7]} 8. c3 {[%clk 0:02:59]} 8...
Nc6 {[%clk 0:03:00.7]} 9. Be2 {[%clk 0:02:58.4]} 9... h6 {[%clk 0:02:53.8]} 10.
Bh4 {[%clk 0:02:58.3]} 10... Be6 {[%clk 0:02:30.5]} 11. O-O {[%clk 0:02:57.1]}
11... Be7 {[%clk 0:02:15.2]} 12. Bf2 {[%clk 0:02:55.9]} 12... O-O {[%clk
0:02:13.5]} 13. cxd4 {[%clk 0:02:55.9]} 13... Bxb3 {[%clk 0:02:12.8]} 14. Qxb3
{[%clk 0:02:55.7]} 14... Nxd4 {[%clk 0:02:12.7]} 15. Qd3 {[%clk 0:02:39.9]}
15... Qb6 {[%clk 0:02:04.5]} 16. Bxd4 {[%clk 0:02:14.1]} 16... exd4 {[%clk
0:02:02.8]} 17. Nd2 {[%clk 0:02:13.4]} 17... Qxb2 {[%clk 0:01:58.6]} 18. Rab1
{[%clk 0:02:11.4]} 18... Qxa2 {[%clk 0:01:57.9]} 19. Rxb7 {[%clk 0:02:11.1]}
19... Bc5 {[%clk 0:01:55.4]} 20. Rc1 {[%clk 0:01:53.5]} 20... Bb6 {[%clk
0:01:43.9]} 21. Nc4 {[%clk 0:01:53.3]} 21... Rac8 {[%clk 0:01:40]} 22. Kf2
{[%clk 0:01:49]} 22... Qa6 {[%clk 0:01:19.9]} 23. Re7 {[%clk 0:01:35]} 23... Bc5
{[%clk 0:01:17.4]} 24. Re5 {[%clk 0:01:31.4]} 24... Rfd8 {[%clk 0:00:40]} 25.
Nd2 {[%clk 0:01:00]} 25... Qd6 {[%clk 0:00:21.2]} 26. Rf5 {[%clk 0:00:58.1]}
26... Qe7 {[%clk 0:00:17.9]} 27. g3 {[%clk 0:00:27.8]} 27... Bb6 {[%clk
0:00:12.8]} 28. Rxc8 {[%clk 0:00:26.4]} 28... Rxc8 {[%clk 0:00:12.6]} 29. Kg2
{[%clk 0:00:26.8]} 29... Rc3 {[%clk 0:00:12.1]} 30. Qb5 {[%clk 0:00:24.9]} 30...
g6 {[%clk 0:00:10.1]} 31. Re5 {[%clk 0:00:22.6]} 31... Qc7 {[%clk 0:00:07.4]}
32. f4 {[%clk 0:00:03.7]} 32... Rc2 {[%clk 0:00:02.9]} 33. Qd3 {[%clk
0:00:02.5]} 33... Rc3 {[%clk 0:00:02.8]} 34. Qb5 {[%clk 0:00:02.2]} 34... Re3
{[%clk 0:00:02.7]} 35. Kf1 {[%clk 0:00:01.7]} 35... Qc2 {[%clk 0:00:02.2]} 0-1

[Event "Late-Titled-Tuesday-Blitz-February-06-2024"]
[Site "Chess.com"]
[Date "2024.02.06"]
[Round "5"]
[White "EsmeraldasAnderson03"]
[Black "mjelcic"]
[Result "1/2-1/2"]
[WhiteElo "2399"]
[BlackElo "2215"]
[TimeControl "180+1"]
[EndTime "14:55:20 PST"]
[Termination "Game drawn by repetition"]

1. d4 {[%clk 0:03:00.9]} 1... d5 {[%clk 0:02:58.5]} 2. c4 {[%clk 0:03:01.3]}
2... c6 {[%clk 0:02:58.7]} 3. cxd5 {[%clk 0:03:01.6]} 3... cxd5 {[%clk
0:02:58.7]} 4. Nc3 {[%clk 0:03:02.5]} 4... Nc6 {[%clk 0:02:58]} 5. Bf4 {[%clk
0:03:03.1]} 5... a6 {[%clk 0:02:47.9]} 6. e3 {[%clk 0:03:03.3]} 6... Nf6 {[%clk
0:02:46.9]} 7. Nf3 {[%clk 0:03:03.4]} 7... Bf5 {[%clk 0:02:42.2]} 8. Bd3 {[%clk
0:03:03.5]} 8... Bxd3 {[%clk 0:02:41.2]} 9. Qxd3 {[%clk 0:03:04.4]} 9... e6
{[%clk 0:02:41.6]} 10. O-O {[%clk 0:03:04.7]} 10... Be7 {[%clk 0:02:39.2]} 11.
Rac1 {[%clk 0:03:04.7]} 11... O-O {[%clk 0:02:38.3]} 12. h3 {[%clk 0:03:05.4]}
12... Rc8 {[%clk 0:02:37.3]} 13. a3 {[%clk 0:03:04.4]} 13... Na5 {[%clk
0:02:30.5]} 14. Ne5 {[%clk 0:02:58.8]} 14... Nc4 {[%clk 0:02:30.2]} 15. Nxc4
{[%clk 0:02:58.9]} 15... Rxc4 {[%clk 0:02:31]} 16. b3 {[%clk 0:02:57.9]} 16...
Rc6 {[%clk 0:02:28.6]} 17. b4 {[%clk 0:02:58.1]} 17... Qd7 {[%clk 0:02:26.1]}
18. Rc2 {[%clk 0:02:52.8]} 18... Rfc8 {[%clk 0:02:25.2]} 19. Rfc1 {[%clk
0:02:53.5]} 19... Rc4 {[%clk 0:02:05.4]} 20. Nb1 {[%clk 0:02:50.6]} 20... Qb5
{[%clk 0:01:51.8]} 21. Rxc4 {[%clk 0:02:49.9]} 21... Rxc4 {[%clk 0:01:51.3]} 22.
Rxc4 {[%clk 0:02:50.2]} 22... dxc4 {[%clk 0:01:43]} 23. Qc2 {[%clk 0:02:50]}
23... Qc6 {[%clk 0:01:38.1]} 24. Nc3 {[%clk 0:02:45.5]} 24... b5 {[%clk
0:01:36.4]} 25. e4 {[%clk 0:02:43.2]} 25... h6 {[%clk 0:01:19.3]} 26. f3 {[%clk
0:02:29.7]} 26... Bd8 {[%clk 0:01:15.1]} 27. Kh1 {[%clk 0:02:16.2]} 27... Bb6
{[%clk 0:01:14.7]} 28. Qd2 {[%clk 0:02:14.1]} 28... Qd7 {[%clk 0:01:05.4]} 29.
d5 {[%clk 0:02:00.4]} 29... exd5 {[%clk 0:01:05.5]} 30. exd5 {[%clk 0:02:01.3]}
30... Bc7 {[%clk 0:00:35.1]} 31. Bxc7 {[%clk 0:01:59]} 31... Qxc7 {[%clk
0:00:36]} 32. d6 {[%clk 0:01:58.6]} 32... Qd7 {[%clk 0:00:36.4]} 33. Qd4 {[%clk
0:01:55.5]} 33... Ne8 {[%clk 0:00:35.4]} 34. Ne4 {[%clk 0:01:55.5]} 34... f5
{[%clk 0:00:33.2]} 35. Qd5+ {[%clk 0:01:42.2]} 35... Kh7 {[%clk 0:00:31.5]} 36.
Nc5 {[%clk 0:01:39.5]} 36... Qxd6 {[%clk 0:00:31.7]} 37. Qxf5+ {[%clk
0:01:40.1]} 37... Qg6 {[%clk 0:00:25.6]} 38. Qc8 {[%clk 0:01:17]} 38... Nd6
{[%clk 0:00:22.7]} 39. Qd8 {[%clk 0:01:11.2]} 39... c3 {[%clk 0:00:21.9]} 40.
Nd7 {[%clk 0:01:08.6]} 40... Qe8 {[%clk 0:00:17.1]} 41. Nf8+ {[%clk 0:01:03]}
41... Kg8 {[%clk 0:00:16.6]} 42. Qxd6 {[%clk 0:01:03]} 42... Qxf8 {[%clk
0:00:16.6]} 43. Qd5+ {[%clk 0:01:02.2]} 43... Qf7 {[%clk 0:00:16.9]} 44. Qc6
{[%clk 0:01:02]} 44... Qc4 {[%clk 0:00:16.6]} 45. Qe8+ {[%clk 0:01:01.5]} 45...
Kh7 {[%clk 0:00:16.7]} 46. Qe1 {[%clk 0:00:58.7]} 46... c2 {[%clk 0:00:16.3]}
47. Qc1 {[%clk 0:00:59.3]} 47... Qd3 {[%clk 0:00:16.3]} 48. Kh2 {[%clk 0:01:00]}
48... Qd6+ {[%clk 0:00:16.3]} 49. f4 {[%clk 0:00:57.9]} 49... Qd3 {[%clk
0:00:15.8]} 50. Qe1 {[%clk 0:00:51.8]} 50... h5 {[%clk 0:00:13.6]} 51. h4 {[%clk
0:00:48.9]} 51... Kg6 {[%clk 0:00:12.5]} 52. Qe6+ {[%clk 0:00:46.4]} 52... Kh7
{[%clk 0:00:12.5]} 53. f5 {[%clk 0:00:44.6]} 53... c1=Q {[%clk 0:00:10.7]} 54.
Qg6+ {[%clk 0:00:44.7]} 54... Kg8 {[%clk 0:00:09.6]} 55. Qe8+ {[%clk 0:00:45.6]}
55... Kh7 {[%clk 0:00:09.1]} 56. Qg6+ {[%clk 0:00:45.6]} 56... Kh8 {[%clk
0:00:09.7]} 57. Qe8+ {[%clk 0:00:42.3]} 57... Kh7 {[%clk 0:00:10.1]} 58. Qg6+
{[%clk 0:00:43]} 1/2-1/2

[Event "Late-Titled-Tuesday-Blitz-February-06-2024"]
[Site "Chess.com"]
[Date "2024.02.06"]
[Round "5"]
[White "Petukhov_Dmitry"]
[Black "IranianCheetah"]
[Result "1-0"]
[WhiteElo "2551"]
[BlackElo "2351"]
[TimeControl "180+1"]
[EndTime "14:55:21 PST"]
[Termination "Petukhov_Dmitry won on time"]

1. e4 {[%clk 0:02:59]} 1... e5 {[%clk 0:03:00.2]} 2. Nf3 {[%clk 0:02:58.8]} 2...
Nc6 {[%clk 0:03:00.8]} 3. Bb5 {[%clk 0:02:59]} 3... a6 {[%clk 0:03:00.8]} 4. Ba4
{[%clk 0:02:59.1]} 4... Nf6 {[%clk 0:03:00.9]} 5. O-O {[%clk 0:02:59.4]} 5...
Be7 {[%clk 0:03:01.5]} 6. Re1 {[%clk 0:02:58]} 6... b5 {[%clk 0:03:01.2]} 7. Bb3
{[%clk 0:02:58.9]} 7... Bb7 {[%clk 0:03:02.1]} 8. c3 {[%clk 0:02:56.5]} 8... d5
{[%clk 0:03:02.1]} 9. exd5 {[%clk 0:02:54.6]} 9... Nxd5 {[%clk 0:03:03]} 10. d4
{[%clk 0:02:55.5]} 10... exd4 {[%clk 0:03:02.6]} 11. cxd4 {[%clk 0:02:56.4]}
11... O-O {[%clk 0:03:01.9]} 12. Nc3 {[%clk 0:02:56.7]} 12... Nxc3 {[%clk
0:02:43.7]} 13. bxc3 {[%clk 0:02:57.6]} 13... Bd6 {[%clk 0:02:42.3]} 14. Ng5
{[%clk 0:02:46.9]} 14... h6 {[%clk 0:02:11.8]} 15. Nxf7 {[%clk 0:02:46.1]} 15...
Rxf7 {[%clk 0:02:10.1]} 16. Qh5 {[%clk 0:02:46.3]} 16... Qf6 {[%clk 0:01:59.2]}
17. Bxh6 {[%clk 0:02:25.7]} 17... gxh6 {[%clk 0:01:14]} 18. Re4 {[%clk
0:02:12.2]} 18... Rf8 {[%clk 0:00:34.8]} 19. f3 {[%clk 0:02:02.5]} 19... Na5
{[%clk 0:00:28.4]} 20. Rg4+ {[%clk 0:02:00]} 20... Kh8 {[%clk 0:00:27.7]} 21.
Rg6 {[%clk 0:01:54.1]} 21... Qxg6 {[%clk 0:00:15.6]} 22. Qxg6 {[%clk 0:01:53]}
22... Nxb3 {[%clk 0:00:15.9]} 23. axb3 {[%clk 0:01:52.2]} 23... Rf6 {[%clk
0:00:15.3]} 24. Qh5 {[%clk 0:01:46.6]} 24... Bxf3 {[%clk 0:00:14.3]} 25. gxf3
{[%clk 0:01:41.8]} 25... Rxf3 {[%clk 0:00:14.9]} 26. Qxh6+ {[%clk 0:01:38]}
26... Kg8 {[%clk 0:00:15.2]} 27. Ra2 {[%clk 0:01:31.8]} 27... Rf1+ {[%clk
0:00:10.7]} 28. Kg2 {[%clk 0:01:30.4]} 28... R8f6 {[%clk 0:00:09.9]} 29. Qg5+
{[%clk 0:01:22.9]} 29... Kf7 {[%clk 0:00:09.2]} 30. Qd5+ {[%clk 0:01:21.3]}
30... Ke7 {[%clk 0:00:08.7]} 31. Re2+ {[%clk 0:01:21.3]} 31... Kd7 {[%clk
0:00:08.3]} 32. Qa8 {[%clk 0:01:17.5]} 32... Rf8 {[%clk 0:00:06.7]} 33. Qxa6
{[%clk 0:01:15.5]} 33... R1f5 {[%clk 0:00:04.5]} 34. Re4 {[%clk 0:00:25.3]}
34... Rg8+ {[%clk 0:00:03.4]} 35. Kh3 {[%clk 0:00:25.5]} 35... Rf3+ {[%clk
0:00:02]} 36. Kh4 {[%clk 0:00:25.6]} 36... Bxh2 {[%clk 0:00:01.2]} 37. Qxb5+
{[%clk 0:00:24.9]} 37... Kd8 {[%clk 0:00:01.3]} 38. Qb8+ {[%clk 0:00:23.4]}
38... Kd7 {[%clk 0:00:01.4]} 39. Qxg8 {[%clk 0:00:23.3]} 1-0

[Event "Late-Titled-Tuesday-Blitz-February-06-2024"]
[Site "Chess.com"]
[Date "2024.02.06"]
[Round "5"]
[White "Elsa167"]
[Black "varunkrishnanchess"]
[Result "1-0"]
[WhiteElo "2889"]
[BlackElo "2640"]
[TimeControl "180+1"]
[EndTime "14:55:24 PST"]
[Termination "Elsa167 won on time"]

1. d4 {[%clk 0:03:00.9]} 1... Nf6 {[%clk 0:02:57.8]} 2. c4 {[%clk 0:03:01.5]}
2... e6 {[%clk 0:02:57.8]} 3. Nf3 {[%clk 0:03:01.5]} 3... d5 {[%clk 0:02:56.7]}
4. Nc3 {[%clk 0:03:01.6]} 4... Be7 {[%clk 0:02:51.3]} 5. g3 {[%clk 0:03:00.8]}
5... O-O {[%clk 0:02:48.4]} 6. Bg2 {[%clk 0:03:01.2]} 6... dxc4 {[%clk
0:02:45.2]} 7. Ne5 {[%clk 0:03:01.3]} 7... Nc6 {[%clk 0:02:36.1]} 8. Bxc6 {[%clk
0:03:00.8]} 8... bxc6 {[%clk 0:02:36.4]} 9. Nxc6 {[%clk 0:03:01.7]} 9... Qe8
{[%clk 0:02:36.5]} 10. Nxe7+ {[%clk 0:03:02.4]} 10... Qxe7 {[%clk 0:02:37.2]}
11. Qa4 {[%clk 0:03:03]} 11... c5 {[%clk 0:02:30.3]} 12. dxc5 {[%clk 0:03:03]}
12... Qxc5 {[%clk 0:02:25.7]} 13. Be3 {[%clk 0:03:03.4]} 13... Qh5 {[%clk
0:02:17.6]} 14. f3 {[%clk 0:02:47.7]} 14... Nd5 {[%clk 0:02:05.7]} 15. Bd2
{[%clk 0:02:41.1]} 15... Nb6 {[%clk 0:01:56.4]} 16. Qb5 {[%clk 0:02:38.3]} 16...
Qg6 {[%clk 0:01:51.1]} 17. O-O {[%clk 0:02:32.7]} 17... Bd7 {[%clk 0:01:44.3]}
18. Qe5 {[%clk 0:02:30.5]} 18... Bc6 {[%clk 0:01:27.4]} 19. Be3 {[%clk
0:02:20.5]} 19... Nd5 {[%clk 0:01:26.2]} 20. Bc5 {[%clk 0:02:10.9]} 20... Rfd8
{[%clk 0:01:23.2]} 21. Rad1 {[%clk 0:02:10]} 21... Nxc3 {[%clk 0:01:15.8]} 22.
Qxc3 {[%clk 0:02:06.7]} 22... Bb5 {[%clk 0:01:05.2]} 23. Rxd8+ {[%clk 0:01:46]}
23... Rxd8 {[%clk 0:01:06.1]} 24. Qa5 {[%clk 0:01:46.4]} 24... Rc8 {[%clk
0:00:34.6]} 25. Qxb5 {[%clk 0:01:43.4]} 25... Qg5 {[%clk 0:00:20.2]} 26. Qxc4
{[%clk 0:00:56.4]} 26... Rxc5 {[%clk 0:00:16.1]} 27. Qd3 {[%clk 0:00:53.5]}
27... h6 {[%clk 0:00:14.9]} 28. Rd1 {[%clk 0:00:41.5]} 28... Rd5 {[%clk
0:00:14.4]} 29. Qc2 {[%clk 0:00:42]} 29... Qe3+ {[%clk 0:00:14.4]} 30. Kf1
{[%clk 0:00:42.3]} 30... Rxd1+ {[%clk 0:00:11.4]} 31. Qxd1 {[%clk 0:00:43.2]}
31... g6 {[%clk 0:00:09.8]} 32. a3 {[%clk 0:00:33.5]} 32... h5 {[%clk
0:00:10.1]} 33. h4 {[%clk 0:00:32.7]} 33... Qb6 {[%clk 0:00:09.3]} 34. b4 {[%clk
0:00:29.2]} 34... Qc7 {[%clk 0:00:08.4]} 35. Kf2 {[%clk 0:00:26]} 35... Qb6+
{[%clk 0:00:06.9]} 36. Kg2 {[%clk 0:00:26.5]} 36... Qc7 {[%clk 0:00:07.6]} 37.
Qd3 {[%clk 0:00:25.4]} 37... Qb6 {[%clk 0:00:06.1]} 38. Qb3 {[%clk 0:00:24]}
38... Qb5 {[%clk 0:00:04.3]} 39. Qd3 {[%clk 0:00:22.9]} 39... Qb6 {[%clk
0:00:04.2]} 40. Qc4 {[%clk 0:00:21.5]} 40... Qd6 {[%clk 0:00:03.2]} 41. a4
{[%clk 0:00:21.2]} 41... Qb6 {[%clk 0:00:01.1]} 42. a5 {[%clk 0:00:21.5]} 42...
Qb7 {[%clk 0:00:01.1]} 43. b5 {[%clk 0:00:21.6]} 43... Kg7 {[%clk 0:00:01.5]}
44. Qd4+ {[%clk 0:00:17.3]} 1-0

[Event "Late-Titled-Tuesday-Blitz-February-06-2024"]
[Site "Chess.com"]
[Date "2024.02.06"]
[Round "5"]
[White "N_I_Chess"]
[Black "PNEPaul"]
[Result "1-0"]
[WhiteElo "2338"]
[BlackElo "1871"]
[TimeControl "180+1"]
[EndTime "14:55:24 PST"]
[Termination "N_I_Chess won on time"]

1. d4 {[%clk 0:02:55.4]} 1... Nf6 {[%clk 0:02:50.2]} 2. c4 {[%clk 0:02:30.9]}
2... c5 {[%clk 0:02:49.7]} 3. d5 {[%clk 0:02:31.1]} 3... Ne4 {[%clk 0:02:49.5]}
4. e3 {[%clk 0:02:10.6]} 4... Qa5+ {[%clk 0:02:45.3]} 5. Nd2 {[%clk 0:02:10.5]}
5... d6 {[%clk 0:02:43]} 6. Bd3 {[%clk 0:02:08.9]} 6... Nf6 {[%clk 0:02:42.7]}
7. Ne2 {[%clk 0:02:01.8]} 7... g6 {[%clk 0:02:42.3]} 8. O-O {[%clk 0:02:01.4]}
8... Bg7 {[%clk 0:02:42.3]} 9. e4 {[%clk 0:01:53.7]} 9... O-O {[%clk 0:02:40.2]}
10. h3 {[%clk 0:01:49.1]} 10... e5 {[%clk 0:02:38.8]} 11. Nc3 {[%clk 0:01:34.8]}
11... h6 {[%clk 0:02:36.3]} 12. Re1 {[%clk 0:01:26.3]} 12... Na6 {[%clk
0:02:34.1]} 13. Nf1 {[%clk 0:01:22.6]} 13... Qd8 {[%clk 0:02:18.2]} 14. Ng3
{[%clk 0:01:14.2]} 14... b6 {[%clk 0:02:07.9]} 15. a3 {[%clk 0:01:06.4]} 15...
Bd7 {[%clk 0:02:03.1]} 16. Be3 {[%clk 0:01:01.2]} 16... Nc7 {[%clk 0:02:00.5]}
17. Qd2 {[%clk 0:01:01.6]} 17... Kh7 {[%clk 0:01:59.7]} 18. f4 {[%clk
0:01:01.4]} 18... exf4 {[%clk 0:01:55.8]} 19. Bxf4 {[%clk 0:01:02.3]} 19... Nce8
{[%clk 0:01:52.8]} 20. Rf1 {[%clk 0:01:01.8]} 20... a6 {[%clk 0:01:33.7]} 21.
Kh1 {[%clk 0:01:00.9]} 21... Rb8 {[%clk 0:01:04.2]} 22. e5 {[%clk 0:00:52.4]}
22... dxe5 {[%clk 0:01:03.3]} 23. Bxe5 {[%clk 0:00:53.3]} 23... Rc8 {[%clk
0:00:55.6]} 24. a4 {[%clk 0:00:48.3]} 24... Ng8 {[%clk 0:00:37.9]} 25. Rae1
{[%clk 0:00:46.3]} 25... Bxe5 {[%clk 0:00:35.5]} 26. Rxe5 {[%clk 0:00:47.2]}
26... Qh4 {[%clk 0:00:31.1]} 27. Qf4 {[%clk 0:00:43.6]} 27... Qxf4 {[%clk
0:00:30]} 28. Rxf4 {[%clk 0:00:44.5]} 28... Nd6 {[%clk 0:00:25.4]} 29. Nh5
{[%clk 0:00:38.7]} 29... f5 {[%clk 0:00:20.5]} 30. Ng3 {[%clk 0:00:34.2]} 30...
Nf6 {[%clk 0:00:17.5]} 31. Rf1 {[%clk 0:00:25.9]} 31... b5 {[%clk 0:00:17.1]}
32. axb5 {[%clk 0:00:25.6]} 32... axb5 {[%clk 0:00:14.7]} 33. b3 {[%clk
0:00:25.8]} 33... b4 {[%clk 0:00:13.6]} 34. Nce2 {[%clk 0:00:18.2]} 34... Rfe8
{[%clk 0:00:13.4]} 35. Rxe8 {[%clk 0:00:16.9]} 35... Rxe8 {[%clk 0:00:12.7]} 36.
Nf4 {[%clk 0:00:16.4]} 36... Re3 {[%clk 0:00:10.7]} 37. Rf3 {[%clk 0:00:15.7]}
37... Rxf3 {[%clk 0:00:09.8]} 38. gxf3 {[%clk 0:00:16.6]} 38... Kg7 {[%clk
0:00:07.2]} 39. Bc2 {[%clk 0:00:16.4]} 39... Kf7 {[%clk 0:00:06.5]} 40. Nd3
{[%clk 0:00:16.8]} 40... g5 {[%clk 0:00:02.8]} 41. Nxc5 {[%clk 0:00:16.7]} 1-0

[Event "Late-Titled-Tuesday-Blitz-February-06-2024"]
[Site "Chess.com"]
[Date "2024.02.06"]
[Round "5"]
[White "Yushko_Olga"]
[Black "cristianserban1"]
[Result "0-1"]
[WhiteElo "2222"]
[BlackElo "2528"]
[TimeControl "180+1"]
[EndTime "14:55:26 PST"]
[Termination "cristianserban1 won on time"]

1. d4 {[%clk 0:02:59.6]} 1... g6 {[%clk 0:03:00.9]} 2. c4 {[%clk 0:02:59.8]}
2... Bg7 {[%clk 0:03:00.6]} 3. Nf3 {[%clk 0:02:59.9]} 3... d6 {[%clk 0:03:01.1]}
4. Bg5 {[%clk 0:02:58.4]} 4... h6 {[%clk 0:03:00.5]} 5. Bh4 {[%clk 0:02:58.5]}
5... g5 {[%clk 0:02:58]} 6. Bg3 {[%clk 0:02:58.8]} 6... Nf6 {[%clk 0:02:58.3]}
7. Nc3 {[%clk 0:02:59]} 7... Nh5 {[%clk 0:02:57.7]} 8. e3 {[%clk 0:02:58.4]}
8... e6 {[%clk 0:02:56.8]} 9. Be2 {[%clk 0:02:55.9]} 9... Nd7 {[%clk 0:02:55.3]}
10. Qc2 {[%clk 0:02:55.9]} 10... Qe7 {[%clk 0:02:44.6]} 11. b4 {[%clk 0:02:26]}
11... b6 {[%clk 0:02:40.7]} 12. c5 {[%clk 0:02:23.4]} 12... Nxg3 {[%clk
0:02:26.3]} 13. cxd6 {[%clk 0:02:16.8]} 13... Qxd6 {[%clk 0:02:27.2]} 14. hxg3
{[%clk 0:02:13.5]} 14... Qxb4 {[%clk 0:02:27.1]} 15. a3 {[%clk 0:02:11.4]} 15...
Qa5 {[%clk 0:01:44.1]} 16. O-O {[%clk 0:02:07.9]} 16... O-O {[%clk 0:01:44.1]}
17. Nb5 {[%clk 0:02:07.2]} 17... c5 {[%clk 0:01:43.6]} 18. Nd2 {[%clk
0:01:45.1]} 18... cxd4 {[%clk 0:00:43.2]} 19. Nb3 {[%clk 0:01:44.5]} 19... Qa4
{[%clk 0:00:43.6]} 20. exd4 {[%clk 0:01:25.1]} 20... Bb7 {[%clk 0:00:03.9]} 21.
Nc7 {[%clk 0:01:08.4]} 21... Rac8 {[%clk 0:00:03.6]} 22. Rfc1 {[%clk 0:00:49.4]}
22... Bd5 {[%clk 0:00:02.5]} 23. Bb5 {[%clk 0:00:38.8]} 23... Qxb3 {[%clk
0:00:02.5]} 24. Bxd7 {[%clk 0:00:32.3]} 24... Qxc2 {[%clk 0:00:02.2]} 25. Rxc2
{[%clk 0:00:33.2]} 25... Rcd8 {[%clk 0:00:02.7]} 26. Bb5 {[%clk 0:00:26.4]}
26... Bxd4 {[%clk 0:00:03.2]} 27. Rd1 {[%clk 0:00:25.8]} 27... Bc5 {[%clk
0:00:03.9]} 28. Nxd5 {[%clk 0:00:13.4]} 28... Rxd5 {[%clk 0:00:04.8]} 29. Rxd5
{[%clk 0:00:13.2]} 29... exd5 {[%clk 0:00:05.7]} 30. a4 {[%clk 0:00:13.7]} 30...
Rd8 {[%clk 0:00:06.1]} 31. Kf1 {[%clk 0:00:12.9]} 31... Kg7 {[%clk 0:00:06.7]}
32. Ke2 {[%clk 0:00:13.1]} 32... Kf6 {[%clk 0:00:07.3]} 33. Kd3 {[%clk
0:00:12.7]} 33... Ke5 {[%clk 0:00:07.3]} 34. Re2+ {[%clk 0:00:12.7]} 34... Kd6
{[%clk 0:00:07.9]} 35. f3 {[%clk 0:00:06.9]} 35... Rh8 {[%clk 0:00:07.4]} 0-1